bitfinex-derivatives/quotes_ETHF0:USTF0_20250428
["timestamp","ask_amount","ask_price","bid_price","bid_amount"]
[1745859327163,1.13564,1760.5,1760.4,1.9681]
[1745859327358,1.13564,1760.5,1760.4,3.8409]
[1745859327955,1.13564,1760.5,1760.4,4.9766]
[1745859328165,1.13564,1760.5,1760.4,3.8409]
[1745859328357,1.13564,1760.5,1760.4,7.6429]
[1745859333373,1.13564,1760.5,1760.4,8.7786]
[1745859333573,1.13564,1760.5,1760.4,7.6429]
[1745859334071,1.13559,1760.6,1760.5,1.1356]
[1745859334265,1.13559,1760.6,1760.5,8.0031]
[1745859335170,1.13559,1760.6,1760.5,11.8051]
[1745859336866,1.13546,1760.9,1760.8,1.13541]
[1745859337067,1.13534,1761.0,1760.9,1.13538]
[1745859337369,1.13534,1761.0,1760.9,3.7774]
[1745859337570,1.13534,1761.0,1760.9,5.728]
[1745859338271,1.13534,1761.0,1760.9,9.53]
[1745859339075,1.13534,1761.0,1760.9,7.6013]
[1745859340577,1.13528,1761.1,1761.0,1.13526]
[1745859340777,1.13528,1761.1,1761.0,6.20176]
[1745859340979,1.13524,1761.2,1761.1,1.13525]
[1745859341869,1.13525,1761.1,1761.0,14.25376]
[1745859342181,1.13525,1761.2,1761.1,1.13523]
[1745859342480,1.13525,1761.2,1761.1,1.13525]
[1745859342670,1.13525,1761.1,1761.0,14.25375]
[1745859343674,1.13525,1761.2,1761.1,1.1352]
[1745859345377,1.13525,1761.2,1761.0,13.1185]
[1745859345378,1.13517,1761.3,1761.2,1.13512]
[1745859345580,1.13517,1761.3,1761.2,4.34292]
[1745859346274,1.13517,1761.3,1761.2,8.14492]
[1745859346973,1.13517,1761.3,1761.2,3.802]
[1745859347178,1.13525,1761.1,1761.0,4.25]
[1745859347968,2.79185,1761.1,1761.0,4.25]
[1745859348176,2.79185,1761.1,1761.0,8.052]
[1745859349785,2.79185,1761.1,1761.0,3.802]
[1745859350284,1.13532,1761.0,1760.9,1.8487]
[1745859352079,2.79122,1761.0,1760.9,1.8487]
[1745859353678,2.79122,1761.0,1760.7,4.25]
[1745859353679,1.13544,1760.8,1760.7,4.25]
[1745859354083,1.13557,1760.6,1760.5,5.0601]
[1745859354283,1.13557,1760.6,1760.5,1.8523]
[1745859354686,2.95217,1760.6,1760.5,1.8523]
[1745859356391,2.95217,1760.6,1760.5,3.6135]
[1745859357083,2.95217,1760.6,1760.5,7.4155]
[1745859359884,4.55797,1760.6,1760.5,7.4155]
[1745859360189,4.55797,1760.6,1760.5,3.6135]
[1745859361085,1.13564,1760.5,1760.4,3.802]
[1745859361287,1.1357,1760.4,1760.3,1.8344]
[1745859361485,1.13583,1760.2,1760.1,7.4588]
[1745859362593,1.13596,1760.0,1759.9,3.2078]
[1745859362797,1.13596,1760.0,1759.9,1.8344]
[1745859363294,1.13596,1760.0,1759.9,5.6364]
[1745859364290,1.13596,1760.0,1759.9,7.431]
[1745859366296,1.13635,1759.4,1759.3,3.2078]
[1745859366486,1.13635,1759.4,1759.3,6.965]
[1745859366682,1.13634,1759.5,1759.4,1.13634]
[1745859366982,1.13634,1759.5,1759.4,3.01754]
[1745859367182,6.04819,1759.8,1759.5,1.13627]
[1745859367183,1.13628,1759.6,1759.5,1.13627]
[1745859367386,1.13628,1759.6,1759.5,6.10367]
[1745859367583,1.13619,1759.7,1759.5,11.89]
[1745859367789,1.13615,1759.7,1759.6,4.77182]
[1745859368185,1.13613,1759.8,1759.7,1.1361]
[1745859368388,1.13607,1759.9,1759.8,1.13603]
[1745859368693,1.13599,1760.0,1759.9,1.13597]
[1745859368891,1.13599,1760.0,1759.9,8.14237]
[1745859369193,1.13596,1760.1,1759.9,10.8084]
[1745859369396,1.13587,1760.2,1760.1,1.13587]
[1745859369598,17.35985085,1760.8,1760.1,6.04747]
[1745859369797,12.44891085,1760.8,1760.7,1.13551]
[1745859370096,1.13551,1760.7,1760.6,4.34332]
[1745859371699,12.44890085,1760.8,1760.7,1.13551]
[1745859371895,12.44890085,1760.8,1760.7,2.94931]
[1745859372194,11.31341085,1760.8,1760.7,6.75131]
[1745859372593,12.44885085,1760.8,1760.7,6.75131]
[1745859372793,12.44885085,1760.8,1760.7,8.50381]
[1745859372994,11.31341085,1760.8,1760.7,8.50381]
[1745859373498,1.13525,1761.1,1760.7,14.45007]
[1745859373696,1.13525,1761.1,1760.9,3.2078]
[1745859373894,1.13525,1761.1,1761.0,1.8638]
[1745859374094,2.89944,1761.2,1761.0,6.80108]
[1745859374401,1.13525,1761.1,1761.0,5.6658]
[1745859374591,1.13523,1761.2,1761.0,4.93727]
[1745859374997,1.13523,1761.2,1761.1,1.13525]
[1745859375197,1.13525,1761.1,1761.0,4.93727]
[1745859375817,1.13524,1761.2,1761.1,1.13523]
[1745859376136,1.13524,1761.2,1761.1,2.95143]
[1745859377411,1.13524,1761.2,1761.1,2.95145]
[1745859378310,1.13524,1761.2,1761.1,1.8162]
[1745859378510,5.67628,1761.1,1760.0,2.83982]
[1745859378704,2.83878,1760.7,1760.2,3.01397]
[1745859378899,1.13577,1760.3,1760.2,1.8782]
[1745859379098,1.13576,1760.4,1760.2,6.81602]
[1745859379300,1.13577,1760.3,1760.2,5.6802]
[1745859379502,7.65144,1760.6,1760.2,6.81603]
[1745859379705,1.13576,1760.4,1760.2,6.81603]
[1745859379895,1.13577,1760.3,1760.2,6.81603]
[1745859380200,1.13577,1760.3,1760.2,5.6802]
[1745859380400,1.13577,1760.3,1760.2,4.93783]
[1745859380600,1.13577,1760.3,1760.2,6.81603]
[1745859380800,1.13577,1760.3,1760.2,5.6802]
[1745859385699,1.13577,1760.3,1760.2,3.802]
[1745859385900,6.13577,1760.3,1760.2,3.802]
[1745859386104,1.13609,1759.8,1759.7,3.2078]
[1745859386306,1.13615,1759.7,1759.6,6.1251]
[1745859386510,1.13615,1759.7,1759.6,9.3329]
[1745859387308,1.13615,1759.7,1759.6,11.1844]
[1745859388004,1.13615,1759.7,1759.6,7.9766]
[1745859390702,1.13615,1759.7,1759.6,1.8821]
[1745859392816,1.13635,1759.4,1759.3,9.2136]
[1745859393114,1.13635,1759.4,1759.3,12.08411]
[1745859393310,1.13635,1759.4,1759.3,10.9477]
[1745859393704,1.13635,1759.4,1759.3,12.08411]
[1745859394011,1.13635,1759.4,1759.3,10.9477]
[1745859394312,1.13635,1759.4,1759.3,14.7497]
[1745859394609,1.13635,1759.4,1759.3,15.88611]
[1745859395012,1.13635,1759.4,1759.3,14.7497]
[1745859395910,1.13632,1759.5,1759.4,1.13628]
[1745859397115,1.13627,1759.6,1759.5,1.13622]
[1745859397314,1.13627,1759.6,1759.5,4.34402]
[1745859398007,1.13627,1759.6,1759.5,3.2078]
[1745859398207,1.13627,1759.6,1759.5,7.0098]
[1745859398817,1.13627,1759.6,1759.5,8.14608]
[1745859401319,1.13627,1759.6,1759.5,7.0098]
[1745859402119,1.13627,1759.6,1759.5,3.2078]
[1745859402915,1.13627,1759.6,1759.5,4.34408]
[1745859404121,1.13635,1759.4,1759.3,7.4518]
[1745859404614,1.13635,1759.4,1759.3,8.58821]
[1745859404819,1.13632,1759.5,1759.4,1.13628]
[1745859407220,1.13632,1759.5,1759.4,2.91248]
[1745859407817,1.13632,1759.5,1759.4,1.7762]
[1745859409122,1.13632,1759.5,1759.4,2.91255]
[1745859409814,1.13632,1759.5,1759.4,1.7762]
[1745859411516,1.13632,1759.5,1759.4,2.91255]
[1745859411718,1.21718847,1759.5,1759.4,2.91255]
[1745859412323,1.21718847,1759.5,1759.4,1.7762]
[1745859412924,1.21718847,1759.5,1759.4,2.91255]
[1745859414420,0.08086847,1759.5,1759.4,2.91255]
[1745859414822,1.21714847,1759.5,1759.4,2.91255]
[1745859416629,1.21714847,1759.5,1759.4,1.7762]
[1745859417027,1.21714847,1759.5,1759.4,2.91255]
[1745859417829,1.21714847,1759.5,1759.4,1.7762]
[1745859418126,6.58394847,1759.5,1759.4,1.7762]
[1745859419027,6.57753736,1759.5,1759.4,1.7762]
[1745859419730,6.57753736,1759.5,1759.4,2.91255]
[1745859419931,6.57753736,1759.5,1759.4,1.7762]
[1745859420729,6.57753736,1759.5,1759.4,2.91255]
[1745859421436,5.01273736,1759.5,1759.4,2.91255]
[1745859423332,5.01273736,1759.5,1759.4,1.7762]
[1745859423529,23.47386736,1759.5,1759.1,3.2078]
[1745859423735,1.13674,1758.8,1758.7,5.0626]
[1745859424120,1.13699,1758.4,1758.3,6.21253]
[1745859424425,1.13699,1758.4,1758.1,3.2078]
[1745859424426,1.13712,1758.2,1758.1,3.2078]
[1745859424840,2.89741,1758.3,1758.1,4.34499]
[1745859425021,1.13712,1758.2,1758.1,3.2078]
[1745859425224,1.13719,1758.1,1758.0,7.54429568]
[1745859425430,2.60729,1758.1,1758.0,7.54429568]
[1745859425638,7.60729,1758.1,1758.0,7.54429568]
[1745859425835,3.28225736,1758.2,1758.0,7.54429568]
[1745859426027,3.802,1758.3,1758.2,1.13712]
[1745859426332,1.13692,1758.6,1758.4,1.13697]
[1745859426533,1.13692,1758.6,1758.5,1.7345]
[1745859427129,3.2078,1758.6,1758.2,3.2078]
[1745859427333,1.13711,1758.3,1758.0,9.27879568]
[1745859427530,1.13712,1758.2,1758.0,10.41600568]
[1745859427736,1.13719,1758.1,1758.0,1.7345]
[1745859427936,4.46239,1758.1,1758.0,1.7345]
[1745859428339,3.802,1758.1,1758.0,2.87175]
[1745859428829,4.93919,1758.1,1758.0,2.87175]
[1745859429031,4.93919,1758.1,1758.0,1.7345]
[1745859429230,1.13719,1758.1,1758.0,1.7345]
[1745859429938,1.4732,1758.2,1758.0,1.7345]
[1745859429939,2.61037,1758.2,1758.0,2.87173]
[1745859430137,1.8551,1758.4,1757.9,3.2078]
[1745859430340,1.13731,1758.0,1757.8,1.13737]
[1745859430539,1.13731,1758.0,1757.9,1.8408]
[1745859430732,1.13731,1758.0,1757.8,1.13737]
[1745859430733,2.88532,1757.9,1757.8,1.8408]
[1745859430932,1.13759,1757.5,1757.1,4.233]
[1745859431234,2.84379,1757.6,1757.2,3.02264]
[1745859431428,1.748,1757.5,1757.4,1.13764]
[1745859432336,2.88563,1757.5,1757.4,1.13764]
[1745859432737,1.748,1757.5,1757.4,1.13764]
[1745859432932,4.681,1757.7,1757.3,1.7063]
[1745859432933,3.2078,1757.7,1757.3,1.7063]
[1745859433134,1.13745,1757.7,1757.3,11.99135]
[1745859433333,1.13745,1757.7,1757.6,1.13751]
[1745859433533,3.2078,1757.9,1757.4,1.7063]
[1745859433839,3.2078,1757.9,1757.6,1.13748]
[1745859433840,1.13744,1757.8,1757.6,1.13748]
[1745859434039,1.13744,1757.8,1757.7,2.84375]
[1745859434240,1.13751,1757.6,1757.5,1.13754]
[1745859434540,1.13751,1757.6,1757.5,1.13752]
[1745859434734,1.4758,1757.8,1757.6,1.1375]
[1745859434940,1.13738,1757.8,1757.7,2.87445]
[1745859435541,1.13738,1757.8,1757.7,1.737]
[1745859435740,7.61318,1757.8,1757.7,1.737]
[1745859436133,1.13758,1757.5,1757.4,5.37062]
[1745859436334,1.13771,1757.3,1757.2,4.88734]
[1745859437137,4.57104,1757.6,1757.2,4.88734]
[1745859437339,1.13768,1757.4,1757.3,1.796]
[1745859438043,2.61228,1757.4,1757.3,1.796]
[1745859438338,6.41428,1757.4,1757.3,1.796]
[1745859438543,14.33057453,1757.4,1756.5,3.2078]
[1745859438845,4.34583,1756.8,1756.7,1.796]
[1745859439341,1.13799,1756.9,1756.7,1.796]
[1745859439536,5.0357,1757.2,1756.7,9.2388]
[1745859439730,9.35482,1757.2,1756.7,6.14185]
[1745859439935,1.13788,1757.1,1756.9,1.13795]
[1745859440135,1.13788,1757.1,1757.0,1.796]
[1745859440637,3.2078,1757.2,1756.7,8.58084]
[1745859440638,6.05229,1757.2,1756.7,8.58084]
[1745859440839,1.13801,1756.9,1756.7,8.58084]
[1745859441046,1.13801,1756.9,1756.8,1.8048]
[1745859441631,2.61261,1756.9,1756.8,1.8048]
[1745859441943,1.13801,1756.9,1756.8,1.8048]
[1745859442139,4.34573,1757.0,1756.7,7.4428]
[1745859442444,5.6806,1757.1,1756.9,1.13795]
[1745859442649,4.93984,1757.1,1757.0,1.8048]
[1745859443038,4.93984,1757.1,1757.0,2.9427]
[1745859443239,3.2078,1757.2,1757.0,2.94268]
[1745859443540,4.34557,1757.2,1757.1,1.13784]
[1745859443742,3.2078,1757.2,1757.1,1.13784]
[1745859443945,3.2078,1757.2,1757.0,2.94266]
[1745859444134,1.13784,1757.1,1757.0,2.94266]
[1745859444337,4.34562,1757.2,1757.0,2.94266]
[1745859444539,3.2078,1757.2,1757.1,1.13784]
[1745859444837,1.13775,1757.3,1757.2,1.13777]
[1745859445043,1.13775,1757.3,1757.1,1.13779]
[1745859445246,1.13775,1757.3,1757.2,1.8041]
[1745859445548,1.13759,1757.5,1757.4,1.13762]
[1745859445848,4.34536,1757.6,1757.5,1.13758]
[1745859446342,3.2078,1757.6,1757.5,1.13758]
[1745859446646,4.34531,1757.6,1757.5,1.13758]
[1745859446844,4.34531,1757.6,1757.5,2.89138]
[1745859447244,3.2078,1757.6,1757.5,2.89138]
[1745859447448,4.34531,1757.6,1757.5,2.89138]
[1745859448150,3.2078,1757.6,1757.5,2.89138]
[1745859448447,4.34531,1757.6,1757.5,2.89138]
[1745859449050,4.34531,1757.6,1757.5,1.7538]
[1745859449346,4.34531,1757.6,1757.5,2.89138]
[1745859449650,3.2078,1757.9,1757.6,1.13746]
[1745859449948,1.13738,1757.8,1757.7,1.8423]
[1745859450148,1.13738,1757.8,1757.7,2.97974]
[1745859450349,4.93938,1757.8,1757.7,1.8423]
[1745859450550,4.93938,1757.8,1757.7,2.97975]
[1745859450745,4.93938,1757.8,1757.7,1.8423]
[1745859451146,4.93938,1757.8,1757.4,1.815]
[1745859451147,2.84364,1757.7,1757.4,1.815]
[1745859451353,1.13758,1757.5,1757.4,1.815]
[1745859452152,4.93958,1757.5,1757.4,1.815]
[1745859452551,6.41438,1757.5,1757.4,1.815]
[1745859453756,4.93958,1757.5,1757.4,1.815]
[1745859454753,4.93958,1757.5,1757.3,4.236]
[1745859454754,1.13764,1757.4,1757.3,4.236]
[1745859456354,1.13777,1757.2,1757.1,1.778]
[1745859456559,1.13777,1757.2,1757.1,2.91584]
[1745859456857,3.2078,1757.4,1757.1,1.778]
[1745859457057,5.68817,1757.5,1757.2,1.13775]
[1745859457250,1.13777,1757.2,1757.1,2.9158]
[1745859457445,1.13775,1757.3,1757.2,1.13776]
[1745859457958,1.13777,1757.2,1757.1,2.91579]
[1745859460359,4.34537,1757.6,1757.5,1.13758]
[1745859460550,1.13758,1757.5,1757.4,5.3686]
[1745859460754,1.13758,1757.5,1757.4,4.231]
[1745859460950,1.13771,1757.3,1757.2,2.99542]
[1745859461261,1.13771,1757.3,1757.2,4.231]
[1745859461565,1.13777,1757.2,1757.1,4.9858]
[1745859461760,1.13777,1757.2,1757.1,6.12364]
[1745859462058,1.13776,1757.3,1757.2,1.13772]
[1745859462962,1.13768,1757.4,1757.3,1.13764]
[1745859463162,1.13771,1757.3,1757.2,2.87313]
[1745859464063,1.13769,1757.4,1757.3,1.13766]
[1745859464563,1.1376,1757.5,1757.4,1.13758]
[1745859464755,8.39931453,1757.6,1757.5,1.13758]
[1745859464958,3.2078,1757.6,1757.5,1.13758]
[1745859465155,4.34524,1757.8,1757.7,1.13745]
[1745859465554,1.13745,1757.7,1757.6,4.66841]
[1745859467057,4.34524,1757.8,1757.7,1.13745]
[1745859467368,1.13744,1757.8,1757.7,3.03115]
[1745859468868,1.13736,1757.9,1757.8,1.13735]
[1745859469769,4.34511,1758.0,1757.9,1.13732]
[1745859469962,1.13734,1757.9,1757.8,1.13734]
[1745859470863,8.92243,1758.1,1757.6,10.60564]
[1745859471068,1.13737,1757.9,1757.8,1.13735]
[1745859471766,1.1373,1758.0,1757.9,1.13728]
[1745859472067,2.89743,1758.1,1758.0,1.13725]
[1745859472363,3.2078,1758.2,1758.1,1.13719]
[1745859472668,1.1372,1758.1,1758.0,1.1372]
[1745859472873,1.13718,1758.2,1758.0,1.13725]
[1745859473062,1.13716,1758.2,1758.1,1.13716]
[1745859474368,1.13725,1758.0,1757.9,4.23]
[1745859474860,1.13725,1758.0,1757.9,5.36732]
[1745859478768,4.6818,1758.2,1757.9,4.23]
[1745859478969,1.13724,1758.1,1758.0,2.76361]
[1745859480073,1.13724,1758.1,1758.0,1.6264]
[1745859480765,2.30444,1758.1,1758.0,1.6264]
[1745859481170,2.30444,1758.1,1758.0,2.76365]
[1745859481171,1.13724,1758.1,1758.0,2.76365]
[1745859482264,1.13724,1758.1,1758.0,1.6264]
[1745859482470,1.13725,1758.0,1757.9,4.23]
[1745859482676,1.13738,1757.8,1757.7,5.98781]
[1745859483777,1.13738,1757.8,1757.7,1.6426]
[1745859484182,4.01042,1757.8,1757.4,2.91221]
[1745859484380,1.13758,1757.5,1757.4,7.01024]
[1745859484881,4.34529,1757.7,1757.6,1.13751]
[1745859485674,4.34529,1757.7,1757.4,11.56076]
[1745859485675,1.13743,1757.8,1757.7,1.13745]
[1745859486485,1.13743,1757.8,1757.7,2.90665]
[1745859486688,1.13743,1757.8,1757.7,1.7692]
[1745859487189,4.9672,1757.9,1757.5,3.2078]
[1745859487385,1.13777,1757.2,1757.1,1.79863]
[1745859489597,1.13777,1757.2,1757.1,2.93647]
[1745859489795,1.13777,1757.2,1757.1,1.79863]
[1745859490894,2.30527,1757.2,1757.1,1.79863]
[1745859491692,1.13777,1757.2,1757.1,1.79863]
[1745859494503,3.2078,1757.3,1757.1,1.79863]
[1745859494702,1.13765,1757.4,1757.3,1.13771]
[1745859494900,1.13755,1757.6,1757.2,1.7338]
[1745859495197,4.34528,1757.7,1757.6,1.13751]
[1745859495403,3.2078,1757.7,1757.3,11.62317]
[1745859495601,3.2078,1757.7,1757.6,1.13751]
[1745859496191,4.34525,1757.7,1757.6,1.13751]
[1745859496501,4.34508,1758.0,1757.9,1.13732]
[1745859497696,4.34508,1758.0,1757.9,2.92152]
[1745859498304,4.34508,1758.0,1757.9,1.7842]
[1745859499203,1.13728,1758.0,1757.9,1.7842]
[1745859499704,1.13728,1758.0,1757.9,2.92152]
[1745859500907,1.13728,1758.0,1757.9,1.7842]
[1745859502306,1.13728,1758.0,1757.9,2.92152]
[1745859503007,4.34497,1758.2,1758.1,1.13719]
[1745859503208,1.13719,1758.1,1758.0,1.6624]
[1745859503706,1.13719,1758.1,1758.0,2.79965]
[1745859504306,1.13719,1758.1,1758.0,1.6624]
[1745859504509,1.13719,1758.1,1758.0,2.79965]
[1745859504901,1.13719,1758.1,1758.0,1.6624]
[1745859505910,6.13719,1758.1,1758.0,0.99374264]
[1745859506103,6.1667,1758.1,1757.8,1.6332]
[1745859506309,1.13732,1757.9,1757.8,1.6332]
[1745859507914,1.13732,1757.9,1757.8,2.77058]
[1745859508098,1.13732,1757.9,1757.8,1.6332]
[1745859509004,1.13732,1757.9,1757.8,3.3253]
[1745859511014,1.13732,1757.9,1757.8,3.50660644]
[1745859511212,6.13732,1757.9,1757.8,0.18130644]
[1745859511412,1.13751,1757.6,1757.5,1.7106]
[1745859511609,1.13764,1757.4,1757.3,1.4395]
[1745859512105,8.14744,1757.4,1757.3,1.4395]
[1745859513215,4.34544,1757.4,1757.3,1.4395]
[1745859513412,5.95934,1757.4,1757.3,1.4395]
[1745859514215,5.95934,1757.4,1757.2,0.00472158]
[1745859514216,1.13771,1757.3,1757.2,0.00472158]
[1745859514513,2.75161,1757.3,1757.2,0.00472158]
[1745859515112,6.55361,1757.3,1757.2,0.00472158]
[1745859515716,4.93971,1757.3,1757.2,0.00472158]
[1745859515913,3.802,1757.3,1757.2,1.14249158]
[1745859516116,1.13768,1757.4,1757.3,1.13771]
[1745859516415,1.13771,1757.3,1757.2,2.90524158]
[1745859516608,1.13769,1757.4,1757.3,1.1377]
[1745859516808,8.89568,1757.6,1757.2,1.14244158]
[1745859517009,1.13764,1757.4,1757.3,1.1377]
[1745859517211,1.13761,1757.5,1757.4,1.13761]
[1745859517412,4.34535,1757.6,1757.5,1.13758]
[1745859518821,1.13747,1757.7,1757.4,6.05187]
[1745859519010,1.13747,1757.7,1757.6,1.13744]
[1745859519210,1.13747,1757.7,1757.6,5.35944]
[1745859519719,6.05115,1757.9,1757.7,1.13742]
[1745859519720,1.13744,1757.8,1757.7,1.13742]
[1745859520015,1.13738,1757.8,1757.7,2.7203]
[1745859520216,1.13738,1757.8,1757.7,1.5829]
[1745859520518,1.13738,1757.8,1757.7,2.72035]
[1745859521520,4.34512,1757.9,1757.8,1.13738]
[1745859521715,3.2078,1757.9,1757.8,1.13738]
[1745859522223,4.34512,1757.9,1757.8,1.13738]
[1745859522414,3.2078,1757.9,1757.8,1.13738]
[1745859522718,3.2078,1758.2,1757.8,3.2078]
[1745859522917,1.13723,1758.1,1758.0,1.13725]
[1745859523118,1.13725,1758.0,1757.9,5.3583]
[1745859527216,4.345,1758.2,1758.1,1.13719]
[1745859527417,3.2078,1758.2,1758.1,1.13719]
[1745859527724,1.13707,1758.3,1758.2,1.13712]
[1745859528023,4.34483,1758.4,1758.3,1.13706]
[1745859528516,3.2078,1758.4,1758.3,2.66476]
[1745859528919,4.34479,1758.4,1758.3,2.66476]
[1745859529722,1.13706,1758.3,1758.2,4.221]
[1745859530225,4.34484,1758.4,1758.3,1.13706]
[1745859530723,3.2078,1758.4,1758.3,1.13706]
[1745859531020,4.34479,1758.4,1758.3,1.13706]
[1745859531725,3.2078,1758.4,1758.3,1.13706]
[1745859531926,4.34479,1758.4,1758.3,1.13706]
[1745859533217,1.13706,1758.3,1758.2,5.35807]
[1745859534532,4.34485,1758.4,1758.3,1.13706]
[1745859534724,3.2078,1758.4,1758.3,1.13706]
[1745859535225,4.34479,1758.4,1758.3,1.13706]
[1745859535414,3.2078,1758.4,1758.3,1.13706]
[1745859535619,4.34479,1758.4,1758.3,2.72876]
[1745859535817,3.2078,1758.4,1758.3,2.72876]
[1745859536027,1.13699,1758.5,1758.4,1.13699]
[1745859536221,1.13699,1758.5,1758.4,2.71409]
[1745859536420,1.13699,1758.5,1758.4,4.42129]
[1745859536621,1.13699,1758.5,1758.4,3.2843]
[1745859537422,1.13699,1758.5,1758.4,4.42129]
[1745859538030,1.13693,1758.6,1758.5,1.13691]
[1745859538223,1.13693,1758.5,1758.4,2.71405]
[1745859538730,1.13692,1758.6,1758.5,1.13691]
[1745859539127,17.49148407,1758.7,1758.6,1.13687]
[1745859539830,1.1369,1758.6,1758.5,1.13689]
[1745859540223,8.89211,1758.7,1758.3,5.8117]
[1745859540423,1.13699,1758.4,1758.3,6.94876]
[1745859540624,1.13699,1758.4,1758.3,5.8117]
[1745859542126,2.90569,1758.4,1758.3,5.8117]
[1745859542329,2.90569,1758.4,1758.3,4.22]
[1745859542527,1.13719,1758.1,1758.0,5.35722]
[1745859544332,1.13719,1758.1,1758.0,4.22]
[1745859544736,1.13719,1758.1,1758.0,5.35725]
[1745859544935,1.13719,1758.1,1758.0,4.22]
[1745859547336,2.81329,1758.1,1758.0,4.22]
[1745859548329,1.13719,1758.1,1758.0,4.22]
[1745859549335,1.13719,1758.1,1758.0,5.35725]
[1745859549928,1.13719,1758.1,1758.0,4.22]
[1745859552236,1.13719,1758.1,1758.0,5.35725]
[1745859553738,3.2078,1758.2,1758.1,1.13719]
[1745859553937,1.13718,1758.2,1758.1,1.13714]
[1745859554137,1.13719,1758.1,1758.0,5.3572]
[1745859555038,2.84304,1758.1,1758.0,4.215]
[1745859555342,1.13719,1758.1,1758.0,4.215]
[1745859556440,1.13719,1758.1,1758.0,5.8206]
[1745859558344,1.13719,1758.1,1758.0,6.95785]
[1745859558839,1.13719,1758.1,1758.0,5.8206]
[1745859559043,1.13719,1758.1,1758.0,6.95785]
[1745859560341,3.2078,1758.4,1758.0,6.95785]
[1745859560542,1.13715,1758.2,1758.1,2.74273]
[1745859561648,1.13715,1758.2,1758.1,1.6056]
[1745859562050,1.13715,1758.2,1758.1,2.74279]
[1745859563949,1.13715,1758.2,1758.1,1.6056]
[1745859564148,1.13715,1758.2,1758.1,2.74279]
[1745859565549,4.34495,1758.2,1758.1,1.6056]
[1745859565750,1.13719,1758.1,1758.0,4.215]
[1745859566050,2.67419,1758.1,1758.0,5.8521]
[1745859566348,4.34959,1758.1,1758.0,5.8521]
[1745859567449,2.67419,1758.1,1758.0,5.8521]
[1745859570352,1.13732,1757.9,1757.8,5.724]
[1745859570548,4.34512,1757.9,1757.8,7.4519]
[1745859571554,4.34512,1757.9,1757.8,7.52946535]
[1745859572250,4.34512,1757.9,1757.8,8.66684535]
[1745859572450,4.34512,1757.9,1757.8,7.52946535]
[1745859572845,4.34512,1757.9,1757.8,8.66684535]
[1745859573041,4.34512,1757.9,1757.8,7.52946535]
[1745859574453,4.34512,1757.9,1757.8,8.66684535]
[1745859575247,4.34512,1757.9,1757.8,7.52946535]
[1745859576653,4.34512,1757.9,1757.8,8.66684535]
[1745859576851,4.34512,1757.9,1757.8,7.52946535]
[1745859577053,4.34512,1757.9,1757.8,8.66684535]
[1745859577352,4.34512,1757.9,1757.8,7.52946535]
[1745859578252,4.34512,1757.9,1757.8,8.66684535]
[1745859578459,4.34512,1757.9,1757.8,7.52946535]
[1745859578754,4.34512,1757.9,1757.8,8.66684535]
[1745859578955,4.34512,1757.9,1757.8,7.52946535]
[1745859580350,1.13728,1758.0,1757.9,1.13727]
[1745859580552,1.13728,1758.0,1757.9,2.90353535]
[1745859581252,1.13728,1758.0,1757.9,6.70553535]
[1745859584758,1.13725,1758.0,1757.9,6.70553535]
[1745859584961,3.2078,1758.1,1758.0,1.13725]
[1745859585251,1.13711,1758.3,1758.2,1.13712]
[1745859585651,1.13711,1758.3,1758.2,4.34738535]
[1745859586660,1.13711,1758.3,1758.2,3.21026535]
[1745859586862,2.75831,1758.3,1758.2,3.21026535]
[1745859587359,1.13711,1758.3,1758.2,3.21026535]
[1745859587767,3.2078,1758.4,1758.3,1.13706]
[1745859588060,4.34479,1758.4,1758.3,2.84106]
[1745859588757,4.34479,1758.4,1758.3,7.91862535]
[1745859588962,13.14686407,1758.7,1758.6,1.13687]
[1745859589260,14.28366407,1758.7,1758.6,5.34587]
[1745859589659,14.28366407,1758.7,1758.6,9.98097]
[1745859589859,14.28366407,1758.7,1758.6,10.05853535]
[1745859590853,13.14686407,1758.7,1758.6,10.05853535]
[1745859591361,14.28363407,1758.8,1758.7,1.1368]
[1745859591661,14.28360407,1758.8,1758.7,2.8104]
[1745859591860,14.28360407,1758.8,1758.7,2.88796535]
[1745859593056,14.28360407,1758.8,1758.7,6.09576535]
[1745859593451,13.14686407,1758.8,1758.7,6.09576535]
[1745859595053,6.09179,1759.1,1758.7,4.95896535]
[1745859595255,6.09179,1759.1,1758.8,1.692]
[1745859595561,1.13667,1759.0,1758.9,5.34464]
[1745859595865,1.13667,1759.0,1758.9,5.42223535]
[1745859596454,1.13667,1759.0,1758.9,4.28556535]
[1745859596960,1.13667,1759.0,1758.9,5.88406535]
[1745859597464,1.13667,1759.0,1758.9,7.02073535]
[1745859598060,1.13667,1759.0,1758.9,5.88406535]
[1745859598459,1.13667,1759.0,1758.9,7.02073535]
[1745859599263,1.5685,1759.1,1758.9,5.88406535]
[1745859599464,2.70504,1759.1,1759.0,1.6829]
[1745859600054,4.47214,1759.1,1759.0,1.76046535]
[1745859600359,2.84159,1759.0,1758.6,2.9311]
[1745859600664,2.84159,1759.0,1758.7,1.13677]
[1745859600665,1.1368,1758.8,1758.7,1.13677]
[1745859600860,1.1368,1758.7,1758.6,6.79854]
[1745859601050,6.04904,1759.2,1758.6,5.6617]
[1745859601255,1.1367,1758.9,1758.8,1.13667]
[1745859601864,2.62316,1759.0,1758.9,1.13667]
[1745859602565,1.13667,1758.9,1758.8,2.57389]
[1745859602867,1.13674,1758.8,1758.7,3.2078]